[Event "Titled Tuesday Blitz December 27 Early 2022"]
[White "Perez Ponsa, Federico"]
[Black "Ayushh, Ravikumar"]
[WhiteFideId "117927"]
[BlackFideId "35039482"]
[WhiteElo "2532"]
[BlackElo "2032"]
[Result "1/2-1/2"]
[Round "01"]
[TimeControl "180+2"]
[Date "2022.12.27"]
[WhiteClock "0:00:10"]
[BlackClock "0:00:13"]

1. e4 {[%clk 0:02:36]}  e5 {[%clk 0:02:58]} 2. Nf3 {[%clk 0:02:36]}  Nf6 {[%clk 0:02:57]} 3. Nxe5 {[%clk 0:02:35]}  d6 {[%clk 0:02:57]} 4. Nf3 {[%clk 0:02:31]}  Nxe4 {[%clk 0:02:58]} 5. Qe2 {[%clk 0:02:32]}  Qe7 {[%clk 0:02:56]} 6. Nc3 {[%clk 0:02:33]}  Nxc3 {[%clk 0:02:53]} 7. dxc3 {[%clk 0:02:33]}  Qxe2+ {[%clk 0:02:53]} 8. Bxe2 {[%clk 0:02:34]}  Nc6 {[%clk 0:02:53]} 9. Be3 {[%clk 0:02:34]}  Be7 {[%clk 0:02:53]} 10. O-O-O {[%clk 0:02:34]}  Bg4 {[%clk 0:02:50]} 11. Rhe1 {[%clk 0:02:31]}  O-O-O {[%clk 0:02:47]} 12. h3 {[%clk 0:02:30]}  Be6 {[%clk 0:02:12]} 13. Nd4 {[%clk 0:02:20]}  Nxd4 {[%clk 0:02:11]} 14. Bxd4 {[%clk 0:02:20]}  c5 {[%clk 0:01:58]} 15. Bxg7 {[%clk 0:01:37]}  Rhg8 {[%clk 0:01:57]} 16. Bh6 {[%clk 0:01:37]}  Rxg2 {[%clk 0:01:54]} 17. Bg4 {[%clk 0:01:38]}  Kd7 {[%clk 0:01:31]} 18. Be3 {[%clk 0:01:27]}  Bxg4 {[%clk 0:01:23]} 19. hxg4 {[%clk 0:01:19]}  b6 {[%clk 0:01:10]} 20. Rg1 {[%clk 0:01:09]}  Rxg1 {[%clk 0:01:10]} 21. Rxg1 {[%clk 0:01:10]}  Rg8 {[%clk 0:01:09]} 22. Kd2 {[%clk 0:01:06]}  Ke6 {[%clk 0:00:47]} 23. Ke2 {[%clk 0:00:57]}  h5 {[%clk 0:00:38]} 24. f3 {[%clk 0:00:52]}  hxg4 {[%clk 0:00:37]} 25. fxg4 {[%clk 0:00:51]}  Bg5 {[%clk 0:00:36]} 26. Bf2 {[%clk 0:00:50]}  f5 {[%clk 0:00:35]} 27. gxf5+ {[%clk 0:00:46]}  Kxf5 {[%clk 0:00:36]} 28. Be3 {[%clk 0:00:44]}  Rg6 {[%clk 0:00:32]} 29. Rf1+ {[%clk 0:00:24]}  Ke6 {[%clk 0:00:30]} 30. Rg1 {[%clk 0:00:21]}  Kf5 {[%clk 0:00:30]} 31. a4 {[%clk 0:00:17]}  Bxe3 {[%clk 0:00:25]} 32. Rxg6 {[%clk 0:00:18]}  Kxg6 {[%clk 0:00:25]} 33. Kxe3 {[%clk 0:00:19]}  Kf5 {[%clk 0:00:20]} 34. Kd3 {[%clk 0:00:18]}  d5 {[%clk 0:00:19]} 35. Ke3 {[%clk 0:00:13]}  Ke5 {[%clk 0:00:20]} 36. b3 {[%clk 0:00:13]}  Kf5 {[%clk 0:00:16]} 37. Kf3 {[%clk 0:00:11]}  Ke5 {[%clk 0:00:16]} 38. Ke3 {[%clk 0:00:12]}  Kf5 {[%clk 0:00:16]} 39. b4 {[%clk 0:00:12]}  Ke5 {[%clk 0:00:15]} 40. Kd3 {[%clk 0:00:11]}  Kf5 {[%clk 0:00:14]} 41. Ke3 {[%clk 0:00:12]}  Ke5 {[%clk 0:00:13]} 42. Kf3 {[%clk 0:00:10]}  Kf5 {[%clk 0:00:13]} 43. Ke3 {[%clk 0:00:10]} 1/2-1/2


[Site "https://www.chess.com"]

[Event "Titled Tuesday Blitz December 27 Early 2022"]
[White "Poeta, Caio Medeiros"]
[Black "Magallanes, Rey Jomar"]
[WhiteFideId "2142660"]
[BlackFideId "5205948"]
[WhiteElo "2088"]
[BlackElo "2052"]
[Result "1/2-1/2"]
[Round "01"]
[TimeControl "180+2"]
[Date "2022.12.27"]
[WhiteClock "0:00:16"]
[BlackClock "0:00:36"]

1. d4 {[%clk 0:02:57]}  d5 {[%clk 0:02:58]} 2. c4 {[%clk 0:02:55]}  e6 {[%clk 0:02:57]} 3. Nf3 {[%clk 0:02:55]}  Nf6 {[%clk 0:02:56]} 4. g3 {[%clk 0:02:55]}  Be7 {[%clk 0:02:53]} 5. Bg2 {[%clk 0:02:56]}  O-O {[%clk 0:02:53]} 6. O-O {[%clk 0:02:56]}  c5 {[%clk 0:02:50]} 7. cxd5 {[%clk 0:02:56]}  exd5 {[%clk 0:02:49]} 8. b3 {[%clk 0:02:56]}  Nc6 {[%clk 0:02:47]} 9. Bb2 {[%clk 0:02:56]}  Bf5 {[%clk 0:02:46]} 10. Nc3 {[%clk 0:02:51]}  Rc8 {[%clk 0:02:38]} 11. Rc1 {[%clk 0:02:51]}  cxd4 {[%clk 0:02:30]} 12. Nxd4 {[%clk 0:02:52]}  Nxd4 {[%clk 0:02:30]} 13. Qxd4 {[%clk 0:02:52]}  Bc5 {[%clk 0:02:30]} 14. Qd2 {[%clk 0:02:51]}  d4 {[%clk 0:02:27]} 15. Na4 {[%clk 0:02:50]}  b6 {[%clk 0:02:19]} 16. b4 {[%clk 0:02:27]}  Be7 {[%clk 0:02:05]} 17. Bxd4 {[%clk 0:02:24]}  Qd7 {[%clk 0:02:03]} 18. Nb2 {[%clk 0:02:02]}  Rcd8 {[%clk 0:02:00]} 19. e3 {[%clk 0:02:01]}  Qb5 {[%clk 0:02:00]} 20. Qc3 {[%clk 0:01:53]}  Qxb4 {[%clk 0:01:54]} 21. Qxb4 {[%clk 0:01:50]}  Bxb4 {[%clk 0:01:55]} 22. Bxf6 {[%clk 0:01:51]}  gxf6 {[%clk 0:01:55]} 23. e4 {[%clk 0:01:39]}  Be6 {[%clk 0:01:55]} 24. Nc4 {[%clk 0:01:29]}  Rc8 {[%clk 0:01:52]} 25. Ne3 {[%clk 0:01:26]}  Bd2 {[%clk 0:01:46]} 26. Rxc8 {[%clk 0:01:24]}  Rxc8 {[%clk 0:01:47]} 27. Nf5 {[%clk 0:01:22]}  Bxf5 {[%clk 0:01:43]} 28. exf5 {[%clk 0:01:23]}  Rc1 {[%clk 0:01:43]} 29. Rxc1 {[%clk 0:01:22]}  Bxc1 {[%clk 0:01:44]} 30. Kf1 {[%clk 0:01:22]}  Kf8 {[%clk 0:01:44]} 31. Ke2 {[%clk 0:01:22]}  Ke7 {[%clk 0:01:44]} 32. Kd3 {[%clk 0:01:23]}  Kd6 {[%clk 0:01:43]} 33. Kc4 {[%clk 0:01:06]}  Ba3 {[%clk 0:01:38]} 34. f4 {[%clk 0:01:04]}  h6 {[%clk 0:01:32]} 35. Bd5 {[%clk 0:00:58]}  Ke7 {[%clk 0:01:31]} 36. Kd4 {[%clk 0:00:54]}  Bc5+ {[%clk 0:01:30]} 37. Ke4 {[%clk 0:00:54]}  a5 {[%clk 0:01:26]} 38. a4 {[%clk 0:00:54]}  Bf2 {[%clk 0:01:23]} 39. g4 {[%clk 0:00:54]}  Bc5 {[%clk 0:01:15]} 40. h4 {[%clk 0:00:52]}  Kf8 {[%clk 0:00:55]} 41. Bb3 {[%clk 0:00:52]}  Ba3 {[%clk 0:00:54]} 42. Kd5 {[%clk 0:00:33]}  Bc1 {[%clk 0:00:51]} 43. Ke4 {[%clk 0:00:32]}  Ba3 {[%clk 0:00:51]} 44. Bc4 {[%clk 0:00:26]}  Bb2 {[%clk 0:00:47]} 45. Bb5 {[%clk 0:00:20]}  Ba3 {[%clk 0:00:47]} 46. Bc4 {[%clk 0:00:21]}  Bb2 {[%clk 0:00:47]} 47. Kf3 {[%clk 0:00:21]}  Bc1 {[%clk 0:00:44]} 48. Kg3 {[%clk 0:00:21]}  Bd2 {[%clk 0:00:43]} 49. Kf3 {[%clk 0:00:18]}  Bc1 {[%clk 0:00:43]} 50. Ke4 {[%clk 0:00:19]}  Bd2 {[%clk 0:00:40]} 51. h5 {[%clk 0:00:20]}  Bc1 {[%clk 0:00:38]} 52. Be2 {[%clk 0:00:18]}  Bd2 {[%clk 0:00:36]} 53. Bc4 {[%clk 0:00:16]}  Bc1 {[%clk 0:00:36]} 54. Bb5 {[%clk 0:00:17]}  Bd2 {[%clk 0:00:36]} 55. Bc6 {[%clk 0:00:17]}  Bc1 {[%clk 0:00:36]} 56. Bb5 {[%clk 0:00:18]}  Bd2 {[%clk 0:00:36]} 57. Kf3 {[%clk 0:00:18]}  Bc1 {[%clk 0:00:36]} 58. Ke4 {[%clk 0:00:16]} 1/2-1/2


[Site "https://www.chess.com"]

[Event "Titled Tuesday Blitz December 27 Early 2022"]
[White "Qashashvili, Alexandre"]
[Black "Oro, Faustino"]
[WhiteFideId "13600842"]
[BlackFideId "20000197"]
[WhiteElo "2505"]
[BlackElo "2269"]
[Result "1-0"]
[Round "01"]
[TimeControl "180+2"]
[Date "2022.12.27"]
[WhiteClock "0:00:04"]
[BlackClock "0:00:04"]

1. e4 {[%clk 0:03:00]}  c5 {[%clk 0:02:58]} 2. Nc3 {[%clk 0:02:55]}  Nc6 {[%clk 0:02:58]} 3. Nf3 {[%clk 0:02:56]}  e5 {[%clk 0:02:50]} 4. Bc4 {[%clk 0:02:51]}  Nf6 {[%clk 0:02:48]} 5. d3 {[%clk 0:02:50]}  d6 {[%clk 0:02:48]} 6. a3 {[%clk 0:02:48]}  Be7 {[%clk 0:02:46]} 7. Nd5 {[%clk 0:02:43]}  Be6 {[%clk 0:02:44]} 8. Nxe7 {[%clk 0:02:41]}  Qxe7 {[%clk 0:02:43]} 9. Bxe6 {[%clk 0:02:37]}  fxe6 {[%clk 0:02:42]} 10. O-O {[%clk 0:02:35]}  O-O {[%clk 0:02:38]} 11. h3 {[%clk 0:02:16]}  h6 {[%clk 0:02:19]} 12. c3 {[%clk 0:02:13]}  Rf7 {[%clk 0:02:08]} 13. Nh2 {[%clk 0:02:10]}  Raf8 {[%clk 0:02:07]} 14. Ng4 {[%clk 0:02:10]}  Kh7 {[%clk 0:01:53]} 15. Nxf6+ {[%clk 0:02:07]}  Rxf6 {[%clk 0:01:52]} 16. Qh5 {[%clk 0:01:54]}  Rg6 {[%clk 0:01:36]} 17. f4 {[%clk 0:01:49]}  exf4 {[%clk 0:01:29]} 18. Bxf4 {[%clk 0:01:34]}  e5 {[%clk 0:01:16]} 19. Be3 {[%clk 0:01:31]}  Rxf1+ {[%clk 0:01:03]} 20. Rxf1 {[%clk 0:01:32]}  Nd8 {[%clk 0:01:02]} 21. Qf5 {[%clk 0:01:18]}  Ne6 {[%clk 0:00:56]} 22. Rf3 {[%clk 0:01:08]}  Qh4 {[%clk 0:00:34]} 23. Bf2 {[%clk 0:00:31]}  Qg5 {[%clk 0:00:31]} 24. Qxg5 {[%clk 0:00:28]}  Nxg5 {[%clk 0:00:27]} 25. Rg3 {[%clk 0:00:26]}  h5 {[%clk 0:00:21]} 26. Be3 {[%clk 0:00:24]}  Ne6 {[%clk 0:00:21]} 27. Rxg6 {[%clk 0:00:23]}  Kxg6 {[%clk 0:00:21]} 28. Kf2 {[%clk 0:00:23]}  Kf7 {[%clk 0:00:20]} 29. Kf3 {[%clk 0:00:23]}  g5 {[%clk 0:00:19]} 30. g4 {[%clk 0:00:22]}  Kg6 {[%clk 0:00:18]} 31. gxh5+ {[%clk 0:00:20]}  Kxh5 {[%clk 0:00:18]} 32. Kg3 {[%clk 0:00:20]}  Nf8 {[%clk 0:00:18]} 33. d4 {[%clk 0:00:20]}  cxd4 {[%clk 0:00:18]} 34. cxd4 {[%clk 0:00:21]}  b6 {[%clk 0:00:17]} 35. dxe5 {[%clk 0:00:21]}  dxe5 {[%clk 0:00:18]} 36. a4 {[%clk 0:00:21]}  Ng6 {[%clk 0:00:15]} 37. a5 {[%clk 0:00:20]}  bxa5 {[%clk 0:00:15]} 38. Bxa7 {[%clk 0:00:20]}  a4 {[%clk 0:00:16]} 39. Bb8 {[%clk 0:00:19]}  Nf4 {[%clk 0:00:08]} 40. Bxe5 {[%clk 0:00:18]}  Nd3 {[%clk 0:00:09]} 41. Bd4 {[%clk 0:00:16]}  Kg6 {[%clk 0:00:09]} 42. Kg4 {[%clk 0:00:14]}  Nb4 {[%clk 0:00:05]} 43. Be3 {[%clk 0:00:13]}  Nd3 {[%clk 0:00:05]} 44. Bxg5 {[%clk 0:00:12]}  Nxb2 {[%clk 0:00:05]} 45. Be7 {[%clk 0:00:08]}  Nd3 {[%clk 0:00:03]} 46. h4 {[%clk 0:00:08]}  Kf7 {[%clk 0:00:03]} 47. Ba3 {[%clk 0:00:07]}  Ne5+ {[%clk 0:00:03]} 48. Kf5 {[%clk 0:00:07]}  Nc4 {[%clk 0:00:04]} 49. Bb4 {[%clk 0:00:06]}  Ne3+ {[%clk 0:00:03]} 50. Kg5 {[%clk 0:00:04]}  Ke6 {[%clk 0:00:03]} 51. h5 {[%clk 0:00:04]}  Kf7 {[%clk 0:00:04]} 52. h6 {[%clk 0:00:04]} 1-0


[Site "https://www.chess.com"]

[Event "Titled Tuesday Blitz December 27 Early 2022"]
[White "Rahman, Adel"]
[Black "Zanette, Edgard Vinicius"]
[WhiteFideId "14204177"]
[BlackFideId "2109263"]
[WhiteElo "2273"]
[BlackElo "2085"]
[Result "1/2-1/2"]
[Round "01"]
[TimeControl "180+2"]
[Date "2022.12.27"]
[WhiteClock "0:01:31"]
[BlackClock "0:00:23"]

1. e4 {[%clk 0:02:56]}  c5 {[%clk 0:02:59]} 2. Nf3 {[%clk 0:02:56]}  d6 {[%clk 0:02:59]} 3. d4 {[%clk 0:02:57]}  cxd4 {[%clk 0:03:00]} 4. Qxd4 {[%clk 0:02:58]}  Nc6 {[%clk 0:02:58]} 5. Bb5 {[%clk 0:02:58]}  Bd7 {[%clk 0:02:58]} 6. Bxc6 {[%clk 0:02:59]}  Bxc6 {[%clk 0:02:59]} 7. Nc3 {[%clk 0:02:59]}  Nf6 {[%clk 0:02:51]} 8. Bg5 {[%clk 0:02:59]}  e6 {[%clk 0:02:45]} 9. O-O-O {[%clk 0:02:59]}  Be7 {[%clk 0:02:43]} 10. Rhe1 {[%clk 0:02:59]}  h6 {[%clk 0:02:31]} 11. Bh4 {[%clk 0:02:56]}  Qa5 {[%clk 0:02:23]} 12. e5 {[%clk 0:02:46]}  dxe5 {[%clk 0:02:01]} 13. Nxe5 {[%clk 0:02:47]}  O-O {[%clk 0:01:52]} 14. Nxc6 {[%clk 0:02:44]}  bxc6 {[%clk 0:01:51]} 15. Re5 {[%clk 0:02:34]}  Qb6 {[%clk 0:01:44]} 16. Qxb6 {[%clk 0:02:31]}  axb6 {[%clk 0:01:44]} 17. a3 {[%clk 0:02:17]}  Rfd8 {[%clk 0:01:40]} 18. Ree1 {[%clk 0:02:08]}  Kf8 {[%clk 0:01:31]} 19. Bg3 {[%clk 0:02:06]}  Nd5 {[%clk 0:01:28]} 20. Nxd5 {[%clk 0:02:05]}  cxd5 {[%clk 0:01:28]} 21. Bc7 {[%clk 0:02:04]}  Rdc8 {[%clk 0:01:13]} 22. Bxb6 {[%clk 0:02:04]}  Ra6 {[%clk 0:00:51]} 23. Bd4 {[%clk 0:02:04]}  Rac6 {[%clk 0:00:47]} 24. Re2 {[%clk 0:01:55]}  f6 {[%clk 0:00:45]} 25. f4 {[%clk 0:01:53]}  Kf7 {[%clk 0:00:40]} 26. g3 {[%clk 0:01:53]}  g5 {[%clk 0:00:30]} 27. Kb1 {[%clk 0:01:36]}  gxf4 {[%clk 0:00:29]} 28. gxf4 {[%clk 0:01:36]}  Bd6 {[%clk 0:00:29]} 29. Rf1 {[%clk 0:01:37]}  Rb8 {[%clk 0:00:27]} 30. Ka2 {[%clk 0:01:37]}  Rc4 {[%clk 0:00:27]} 31. c3 {[%clk 0:01:36]}  Bc7 {[%clk 0:00:26]} 32. b4 {[%clk 0:01:32]}  Bb6 {[%clk 0:00:25]} 33. Bxb6 {[%clk 0:01:31]}  Rxb6 {[%clk 0:00:26]} 34. Kb3 {[%clk 0:01:32]}  Rbc6 {[%clk 0:00:24]} 35. Rf3 {[%clk 0:01:32]}  d4 {[%clk 0:00:22]} 36. cxd4 {[%clk 0:01:32]}  Rxd4 {[%clk 0:00:22]} 37. b5 {[%clk 0:01:32]}  Rc5 {[%clk 0:00:21]} 38. a4 {[%clk 0:01:31]}  Rcc4 {[%clk 0:00:21]} 39. Ra2 {[%clk 0:01:30]}  Rb4+ {[%clk 0:00:21]} 40. Kc2 {[%clk 0:01:30]}  Rdc4+ {[%clk 0:00:21]} 41. Kd3 {[%clk 0:01:25]}  Rxa4 {[%clk 0:00:20]} 42. Rxa4 {[%clk 0:01:25]}  Rxa4 {[%clk 0:00:20]} 43. Kc2 {[%clk 0:01:23]}  Rb4 {[%clk 0:00:17]} 44. Rb3 {[%clk 0:01:24]}  Rxb3 {[%clk 0:00:17]} 45. b6 {[%clk 0:01:24]}  Ke7 {[%clk 0:00:18]} 46. Kxb3 {[%clk 0:01:24]}  Kd6 {[%clk 0:00:18]} 47. Kb4 {[%clk 0:01:23]}  Kc6 {[%clk 0:00:19]} 48. Ka5 {[%clk 0:01:24]}  Kb7 {[%clk 0:00:18]} 49. Kb5 {[%clk 0:01:23]}  h5 {[%clk 0:00:16]} 50. h4 {[%clk 0:01:23]}  e5 {[%clk 0:00:16]} 51. fxe5 {[%clk 0:01:23]}  fxe5 {[%clk 0:00:17]} 52. Kc5 {[%clk 0:01:24]}  e4 {[%clk 0:00:18]} 53. Kd4 {[%clk 0:01:25]}  e3 {[%clk 0:00:18]} 54. Ke4 {[%clk 0:01:26]}  Kxb6 {[%clk 0:00:19]} 55. Kxe3 {[%clk 0:01:26]}  Kc6 {[%clk 0:00:20]} 56. Kf4 {[%clk 0:01:27]}  Kd6 {[%clk 0:00:20]} 57. Kg5 {[%clk 0:01:28]}  Ke7 {[%clk 0:00:21]} 58. Kxh5 {[%clk 0:01:28]}  Kf8 {[%clk 0:00:21]} 59. Kg6 {[%clk 0:01:28]}  Kg8 {[%clk 0:00:22]} 60. h5 {[%clk 0:01:28]}  Kh8 {[%clk 0:00:22]} 61. h6 {[%clk 0:01:29]}  Kg8 {[%clk 0:00:23]} 62. h7+ {[%clk 0:01:30]}  Kh8 {[%clk 0:00:23]} 63. Kh6 {[%clk 0:01:31]} 1/2-1/2


[Site "https://www.chess.com"]

[Event "Titled Tuesday Blitz December 27 Early 2022"]
[White "Ramirez Vido, Robert Yorisan"]
[Black "Grigorov, Grigor"]
[WhiteFideId "3513823"]
[BlackFideId "2907313"]
[WhiteElo "2015"]
[BlackElo "2510"]
[Result "0-1"]
[Round "01"]
[TimeControl "180+2"]
[Date "2022.12.27"]
[WhiteClock "0:01:20"]
[BlackClock "0:01:10"]

1. f4 {[%clk 0:02:59]}  Nh6 {[%clk 0:02:59]} 2. Nf3 {[%clk 0:02:57]}  d5 {[%clk 0:02:58]} 3. g3 {[%clk 0:02:56]}  Nc6 {[%clk 0:02:51]} 4. Bg2 {[%clk 0:02:57]}  Bg4 {[%clk 0:02:51]} 5. O-O {[%clk 0:02:55]}  Nf5 {[%clk 0:02:50]} 6. d3 {[%clk 0:02:54]}  e6 {[%clk 0:02:49]} 7. c3 {[%clk 0:02:52]}  h5 {[%clk 0:02:40]} 8. e4 {[%clk 0:02:51]}  Bc5+ {[%clk 0:02:24]} 9. Kh1 {[%clk 0:02:49]}  h4 {[%clk 0:02:07]} 10. exf5 {[%clk 0:02:32]}  h3 {[%clk 0:02:02]} 11. Re1 {[%clk 0:02:15]}  hxg2+ {[%clk 0:02:01]} 12. Kxg2 {[%clk 0:02:16]}  Bxf5 {[%clk 0:01:57]} 13. d4 {[%clk 0:02:07]}  Bd6 {[%clk 0:01:56]} 14. Na3 {[%clk 0:02:03]}  Bxa3 {[%clk 0:01:50]} 15. bxa3 {[%clk 0:02:03]}  Be4 {[%clk 0:01:47]} 16. a4 {[%clk 0:01:57]}  Qf6 {[%clk 0:01:46]} 17. h4 {[%clk 0:01:44]}  Ne7 {[%clk 0:01:42]} 18. Kf2 {[%clk 0:01:38]}  Nf5 {[%clk 0:01:27]} 19. Ne5 {[%clk 0:01:33]}  Nxg3 {[%clk 0:01:19]} 20. Qg4 {[%clk 0:01:20]}  Nf5 {[%clk 0:01:10]} 0-1


[Site "https://www.chess.com"]

[Event "Titled Tuesday Blitz December 27 Early 2022"]
[White "Rangel, Daniel"]
[Black "Xu, Yi"]
[WhiteFideId "2124475"]
[BlackFideId "8605564"]
[WhiteElo "2207"]
[BlackElo "2527"]
[Result "0-1"]
[Round "01"]
[TimeControl "180+2"]
[Date "2022.12.27"]
[WhiteClock "0:00:12"]
[BlackClock "0:00:12"]

1. d4 {[%clk 0:03:00]}  Nf6 {[%clk 0:02:43]} 2. c4 {[%clk 0:03:00]}  e6 {[%clk 0:02:42]} 3. Nc3 {[%clk 0:03:00]}  Bb4 {[%clk 0:02:40]} 4. e3 {[%clk 0:03:01]}  O-O {[%clk 0:02:38]} 5. Ne2 {[%clk 0:03:01]}  d5 {[%clk 0:02:38]} 6. a3 {[%clk 0:03:01]}  Bd6 {[%clk 0:02:35]} 7. Ng3 {[%clk 0:02:57]}  dxc4 {[%clk 0:02:22]} 8. Bxc4 {[%clk 0:02:58]}  a6 {[%clk 0:02:12]} 9. O-O {[%clk 0:02:57]}  c5 {[%clk 0:01:58]} 10. dxc5 {[%clk 0:02:54]}  Bxc5 {[%clk 0:01:59]} 11. b4 {[%clk 0:02:54]}  Qxd1 {[%clk 0:01:56]} 12. Rxd1 {[%clk 0:02:53]}  Be7 {[%clk 0:01:57]} 13. Bb2 {[%clk 0:02:49]}  b5 {[%clk 0:01:57]} 14. Bd3 {[%clk 0:02:33]}  Bb7 {[%clk 0:01:57]} 15. Nge4 {[%clk 0:02:33]}  Nbd7 {[%clk 0:01:52]} 16. Rac1 {[%clk 0:02:27]}  Rac8 {[%clk 0:01:52]} 17. Nxf6+ {[%clk 0:02:16]}  Nxf6 {[%clk 0:01:52]} 18. Ne2 {[%clk 0:02:06]}  Rfd8 {[%clk 0:01:52]} 19. Rxc8 {[%clk 0:01:54]}  Rxc8 {[%clk 0:01:53]} 20. Rc1 {[%clk 0:01:36]}  Rd8 {[%clk 0:01:50]} 21. Bc2 {[%clk 0:01:07]}  Ne4 {[%clk 0:01:40]} 22. Rd1 {[%clk 0:00:49]}  Rc8 {[%clk 0:01:35]} 23. Bxe4 {[%clk 0:00:46]}  Bxe4 {[%clk 0:01:35]} 24. f3 {[%clk 0:00:45]}  Rc2 {[%clk 0:01:22]} 25. fxe4 {[%clk 0:00:26]}  Rxb2 {[%clk 0:01:17]} 26. Nd4 {[%clk 0:00:25]}  Bg5 {[%clk 0:01:07]} 27. Rd3 {[%clk 0:00:22]}  Rd2 {[%clk 0:00:54]} 28. Rxd2 {[%clk 0:00:09]}  Bxe3+ {[%clk 0:00:54]} 29. Kf1 {[%clk 0:00:09]}  Bxd2 {[%clk 0:00:54]} 30. Ke2 {[%clk 0:00:09]}  Bc1 {[%clk 0:00:53]} 31. Nc2 {[%clk 0:00:07]}  e5 {[%clk 0:00:49]} 32. Kd3 {[%clk 0:00:06]}  Bb2 {[%clk 0:00:49]} 33. Ke3 {[%clk 0:00:02]}  Kf8 {[%clk 0:00:49]} 34. Kf3 {[%clk 0:00:02]}  Ke7 {[%clk 0:00:49]} 35. Kg4 {[%clk 0:00:03]}  Ke6 {[%clk 0:00:48]} 36. h4 {[%clk 0:00:04]}  h6 {[%clk 0:00:41]} 37. h5 {[%clk 0:00:04]}  g6 {[%clk 0:00:41]} 38. Kh4 {[%clk 0:00:03]}  Bc1 {[%clk 0:00:31]} 39. Kg4 {[%clk 0:00:03]}  Kf6 {[%clk 0:00:31]} 40. Kh4 {[%clk 0:00:02]}  Kg7 {[%clk 0:00:26]} 41. Kg4 {[%clk 0:00:03]}  Kh7 {[%clk 0:00:21]} 42. Kh4 {[%clk 0:00:02]}  Kg8 {[%clk 0:00:22]} 43. Kg4 {[%clk 0:00:03]}  Kg7 {[%clk 0:00:22]} 44. Kh4 {[%clk 0:00:04]}  f5 {[%clk 0:00:22]} 45. hxg6 {[%clk 0:00:03]}  fxe4 {[%clk 0:00:19]} 46. Kg4 {[%clk 0:00:03]}  Kxg6 {[%clk 0:00:20]} 47. Kg3 {[%clk 0:00:02]}  Kf5 {[%clk 0:00:19]} 48. Kf2 {[%clk 0:00:03]}  Kf4 {[%clk 0:00:19]} 49. Ke2 {[%clk 0:00:04]}  Kg3 {[%clk 0:00:18]} 50. Kf1 {[%clk 0:00:04]}  e3 {[%clk 0:00:17]} 51. Ke2 {[%clk 0:00:04]}  Kxg2 {[%clk 0:00:17]} 52. Ne1+ {[%clk 0:00:03]}  Kg3 {[%clk 0:00:17]} 53. Nd3 {[%clk 0:00:04]}  Bxa3 {[%clk 0:00:17]} 54. Kxe3 {[%clk 0:00:04]}  h5 {[%clk 0:00:16]} 55. Ke4 {[%clk 0:00:04]}  h4 {[%clk 0:00:15]} 56. Kxe5 {[%clk 0:00:05]}  h3 {[%clk 0:00:16]} 57. Nc5 {[%clk 0:00:03]}  Bxb4 {[%clk 0:00:15]} 58. Ne4+ {[%clk 0:00:04]}  Kg2 {[%clk 0:00:15]} 59. Nf6 {[%clk 0:00:03]}  h2 {[%clk 0:00:15]} 60. Nh5 {[%clk 0:00:04]}  h1=Q {[%clk 0:00:15]} 61. Nf4+ {[%clk 0:00:05]}  Kf3 {[%clk 0:00:15]} 62. Nd3 {[%clk 0:00:06]}  Bc3+ {[%clk 0:00:13]} 63. Kd5 {[%clk 0:00:07]}  Ke3+ {[%clk 0:00:13]} 64. Kc5 {[%clk 0:00:08]}  Kxd3 {[%clk 0:00:13]} 65. Kb6 {[%clk 0:00:09]}  b4 {[%clk 0:00:14]} 66. Ka5 {[%clk 0:00:09]}  b3+ {[%clk 0:00:14]} 67. Ka4 {[%clk 0:00:10]}  b2 {[%clk 0:00:13]} 68. Ka3 {[%clk 0:00:11]}  b1=Q {[%clk 0:00:11]} 69. Ka4 {[%clk 0:00:12]}  Qb4# {[%clk 0:00:12]} 0-1


[Site "https://www.chess.com"]

[Event "Titled Tuesday Blitz December 27 Early 2022"]
[White "Rosh Jain"]
[Black "Toncheva, Nadya"]
[WhiteFideId "25789465"]
[BlackFideId "2924056"]
[WhiteElo "2248"]
[BlackElo "2295"]
[Result "1/2-1/2"]
[Round "01"]
[TimeControl "180+2"]
[Date "2022.12.27"]
[WhiteClock "0:00:09"]
[BlackClock "0:00:07"]

1. e4 {[%clk 0:02:50]}  c5 {[%clk 0:03:00]} 2. Nf3 {[%clk 0:02:50]}  Nc6 {[%clk 0:03:00]} 3. d4 {[%clk 0:02:50]}  cxd4 {[%clk 0:03:01]} 4. Nxd4 {[%clk 0:02:51]}  g6 {[%clk 0:03:00]} 5. Nc3 {[%clk 0:02:51]}  Bg7 {[%clk 0:02:59]} 6. Be3 {[%clk 0:02:51]}  Nf6 {[%clk 0:02:59]} 7. Qd2 {[%clk 0:02:52]}  O-O {[%clk 0:02:59]} 8. f3 {[%clk 0:02:52]}  d6 {[%clk 0:02:59]} 9. O-O-O {[%clk 0:02:52]}  Bd7 {[%clk 0:02:58]} 10. Bc4 {[%clk 0:02:52]}  Rc8 {[%clk 0:02:58]} 11. Bb3 {[%clk 0:02:52]}  Na5 {[%clk 0:02:58]} 12. h4 {[%clk 0:02:52]}  h5 {[%clk 0:02:58]} 13. Kb1 {[%clk 0:02:40]}  Nc4 {[%clk 0:02:58]} 14. Bxc4 {[%clk 0:02:39]}  Rxc4 {[%clk 0:02:59]} 15. Rdg1 {[%clk 0:02:26]}  b5 {[%clk 0:02:48]} 16. g4 {[%clk 0:02:25]}  b4 {[%clk 0:02:45]} 17. Nce2 {[%clk 0:02:24]}  hxg4 {[%clk 0:02:39]} 18. h5 {[%clk 0:02:19]}  gxh5 {[%clk 0:02:35]} 19. Bh6 {[%clk 0:02:13]}  Rc5 {[%clk 0:01:57]} 20. Bxg7 {[%clk 0:02:11]}  Kxg7 {[%clk 0:01:52]} 21. fxg4 {[%clk 0:02:11]}  Bxg4 {[%clk 0:01:41]} 22. Nf5+ {[%clk 0:02:10]}  Rxf5 {[%clk 0:01:41]} 23. exf5 {[%clk 0:02:10]}  Rh8 {[%clk 0:01:31]} 24. Qg5+ {[%clk 0:02:10]}  Kf8 {[%clk 0:01:30]} 25. Nf4 {[%clk 0:02:09]}  Qa5 {[%clk 0:01:12]} 26. Nxh5 {[%clk 0:01:56]}  Rxh5 {[%clk 0:00:42]} 27. Rxh5 {[%clk 0:01:51]}  Bxh5 {[%clk 0:00:42]} 28. Re1 {[%clk 0:01:36]}  b3 {[%clk 0:00:36]} 29. Qh6+ {[%clk 0:01:34]}  Ke8 {[%clk 0:00:36]} 30. Qe3 {[%clk 0:01:23]}  Qxa2+ {[%clk 0:00:32]} 31. Kc1 {[%clk 0:01:23]}  Qa1+ {[%clk 0:00:26]} 32. Kd2 {[%clk 0:01:23]}  Qa5+ {[%clk 0:00:26]} 33. c3 {[%clk 0:01:23]}  Qd5+ {[%clk 0:00:22]} 34. Kc1 {[%clk 0:01:23]}  Qb7 {[%clk 0:00:18]} 35. Qd4 {[%clk 0:01:16]}  Kd8 {[%clk 0:00:16]} 36. Qa4 {[%clk 0:01:09]}  Qd7 {[%clk 0:00:15]} 37. Qa5+ {[%clk 0:01:09]}  Qc7 {[%clk 0:00:15]} 38. Qxc7+ {[%clk 0:00:54]}  Kxc7 {[%clk 0:00:15]} 39. Rxe7+ {[%clk 0:00:54]}  Nd7 {[%clk 0:00:16]} 40. Re4 {[%clk 0:00:51]}  Nc5 {[%clk 0:00:15]} 41. Rh4 {[%clk 0:00:47]}  Bf3 {[%clk 0:00:14]} 42. Rh7 {[%clk 0:00:41]}  Bd5 {[%clk 0:00:15]} 43. Kd2 {[%clk 0:00:37]}  Bc4 {[%clk 0:00:14]} 44. f6 {[%clk 0:00:34]}  Kc6 {[%clk 0:00:14]} 45. Rh8 {[%clk 0:00:32]}  Ne4+ {[%clk 0:00:14]} 46. Ke3 {[%clk 0:00:30]}  Nxf6 {[%clk 0:00:15]} 47. Kd4 {[%clk 0:00:24]}  Be6 {[%clk 0:00:14]} 48. Ra8 {[%clk 0:00:21]}  Kb7 {[%clk 0:00:14]} 49. Rd8 {[%clk 0:00:20]}  Nd7 {[%clk 0:00:13]} 50. c4 {[%clk 0:00:20]}  Nc5 {[%clk 0:00:13]} 51. Rxd6 {[%clk 0:00:19]}  Na4 {[%clk 0:00:11]} 52. Rd8 {[%clk 0:00:13]}  Nxb2 {[%clk 0:00:10]} 53. Kc3 {[%clk 0:00:13]}  Nxc4 {[%clk 0:00:10]} 54. Kxb3 {[%clk 0:00:14]}  Nb6+ {[%clk 0:00:09]} 55. Kb2 {[%clk 0:00:13]}  a5 {[%clk 0:00:09]} 56. Rd1 {[%clk 0:00:12]}  a4 {[%clk 0:00:08]} 57. Kc3 {[%clk 0:00:12]}  Kc6 {[%clk 0:00:09]} 58. Kb4 {[%clk 0:00:11]}  f5 {[%clk 0:00:08]} 59. Rc1+ {[%clk 0:00:10]}  Kd6 {[%clk 0:00:08]} 60. Rd1+ {[%clk 0:00:10]}  Kc7 {[%clk 0:00:08]} 61. Rc1+ {[%clk 0:00:10]}  Kb7 {[%clk 0:00:08]} 62. Ka5 {[%clk 0:00:09]}  Nc4+ {[%clk 0:00:06]} 63. Kxa4 {[%clk 0:00:08]}  Kc6 {[%clk 0:00:07]} 64. Kb4 {[%clk 0:00:08]}  f4 {[%clk 0:00:06]} 65. Rxc4+ {[%clk 0:00:08]}  Bxc4 {[%clk 0:00:06]} 66. Kxc4 {[%clk 0:00:09]}  f3 {[%clk 0:00:05]} 67. Kd3 {[%clk 0:00:09]}  f2 {[%clk 0:00:06]} 68. Ke2 {[%clk 0:00:09]}  f1=Q+ {[%clk 0:00:07]} 69. Kxf1 {[%clk 0:00:09]} 1/2-1/2


[Site "https://www.chess.com"]